Workbook

Sheet Sayfa1
A1: TERME TİCARET BORSASI
A2: AYLAR İTİBARİYLE BORSALARDA MÜSTAHSİL SATIŞI OLARAK İŞLEM GÖREN 2010 YILI MAHSULÜ KABUKLU FINDIK MİKTARLARINI GÖSTERİR LİSTE
A4: 2010 ÜRÜNÜ | B4: 2010 Ağustos | C4: 2010 Eylül | D4: 2010 Ekim | E4: 2010 Kasım | F4: 2010 Aralık | G4: 2011 Ocak | H4: 2011 Şubat | I4: 2011 Mart | J4: 2011 Nisan | K4: 2011 Mayıs | L4: 2011 Haziran | M4: 2011 Temmuz | N4: 2011 Ağustos | O4: TOPLAM
A5: İL/İLÇE
A6: RİZE | B6: 18081 | C6: 608305 | D6: 457926 | E6: 576024 | F6: 604147 | G6: 2470 | H6: 70377 | I6: 0 | J6: 150000 | K6: 0 | L6: 0 | M6: 111100 | N6: 32322 | O6: =SUM(B6:N6) -> 2630752
A7: TRABZON | B7: 1709964 | C7: 4111711 | D7: 4397566 | E7: 4290748 | F7: 6089833 | G7: 2288790 | H7: 2040455 | I7: 1928292 | J7: 1818565 | K7: 840420 | L7: 1671742 | M7: 145787 | N7: 0 | O7: =SUM(B7:N7) -> 31333873
A8: GİRESUN | B8: 5700352 | C8: 11643505 | D8: 8513214 | E8: 6349015 | F8: 7722514 | G8: 6144848 | H8: 6280744 | I8: 4750077 | J8: 2934910 | K8: 4380014 | L8: 3143123 | M8: 1676639 | N8: 319444 | O8: 69558399
A9: ORDU | B9: 13865102 | C9: 29392383 | D9: 22025299 | E9: 15775715 | F9: 14602400 | G9: 8426144 | H9: 9658239 | I9: 11595028 | J9: 5633757 | K9: 8503050 | L9: 6380632 | M9: 4252052 | N9: 1694448 | O9: 151804249
A10: FATSA | B10: 3089195 | C10: 5128583 | D10: 2775819 | E10: 2179449 | F10: 2165069 | G10: 1345304 | H10: 1722662 | I10: 2271744 | J10: 1015312 | K10: 1808671 | L10: 1981637 | M10: 255994 | N10: 0 | O10: 25739439
A11: ÜNYE | B11: 2907288 | C11: 11004382 | D11: 5686875 | E11: 4738072 | F11: 4617588 | G11: 1942377 | H11: 2521028 | I11: 2493813 | J11: 1570895 | K11: 1724570 | L11: 1428697 | M11: 1532057 | N11: 0 | O11: 42167642
A12: TERME | B12: 1824357 | C12: 4740470 | D12: 5436801 | E12: 4326606 | F12: 4628711 | G12: 1962099 | H12: 1547421 | I12: 2856751 | J12: 1038832 | K12: 413214 | L12: 447579 | M12: 383757 | N12: 0 | O12: 29606598
A13: ÇARŞAMBA | B13: 1377910 | C13: 12235425 | D13: 8373155 | E13: 5220237 | F13: 4892396 | G13: 3089291 | H13: 2847724 | I13: 2775741 | J13: 1009905 | K13: 1522157 | L13: 299174 | M13: 557551 | N13: 10600 | O13: 44211266
A14: SAMSUN | B14: 492432 | C14: 2216736 | D14: 2654039 | E14: 2203509 | F14: 1251413 | G14: 881371 | H14: 1176375 | I14: 1290188 | J14: 723514 | K14: 484561 | L14: 461345 | M14: 4750 | N14: 0 | O14: 13840233
A15: BAFRA | B15: 0 | C15: 0 | D15: 0 | F15: 365 | G15: 0 | H15: 0 | I15: 0 | J15: 31805 | K15: 0 | L15: 0 | M15: 0 | N15: 0 | O15: 32170
A16: DÜZCE | B16: 11115660 | C16: 23587647 | D16: 21370923 | E16: 15519945 | F16: 11013279 | G16: 6641142 | H16: 4121847 | I16: 4715337 | J16: 2265778 | K16: 1079657 | L16: 1843938 | M16: 222870 | N16: 41070 | O16: 103539093
A17: AKYAZI | B17: 2412683 | C17: 1909828 | D17: 1120648 | E17: 734770 | F17: 408943 | G17: 326280 | H17: 186460 | I17: 603544 | J17: 27780 | K17: 22383 | L17: 65623 | M17: 0 | N17: 0 | O17: 7818942
A18: ADAPAZARI | B18: 11685132 | C18: 28773165 | D18: 21509737 | E18: 12444588 | F18: 11004202 | G18: 5450641 | H18: 5575611 | I18: 7008419 | J18: 3206060 | K18: 3605284 | L18: 2406287 | M18: 739094 | N18: 0 | O18: 113408220
A19: KASTAMONU | B19: 250200 | C19: 721030 | D19: 719800 | E19: 13860 | F19: 13050 | G19: 0 | H19: 0 | I19: 0 | J19: 17500 | K19: 0 | L19: 0 | M19: 0 | N19: 0 | O19: 1735440
A20: TOPLAM | B20: =SUM(O20) -> 637426316 | C20: =SUM(C6:C19) -> 136073170 | D20: 105041802 | E20: 74372538 | F20: 69013910 | G20: 38500757 | H20: =SUM(H6:H19) -> 37748943 | I20: =SUM(I6:I19) -> 42288934 | J20: =SUM(J6:J19) -> 21444613 | K20: =SUM(K6:K19) -> 24383981 | L20: =SUM(L6:L19) -> 20129777 | M20: =SUM(M6:M19) -> 9881651 | N20: =SUM(N6:N19) -> 2097884 | O20: =SUM(O6:O19) -> 637426316
B21: Kaynak: İlgili Ticaret Borsaları
A23: Tarım ve Köyişleri Bakanlığı İl Müdürlüklerince Yapılan Türkiye Fındık Rekolteleri
A25: İLLER | B25: 2005 TON/KAB. | C25: 2006 TON/KAB. | D25: 2007 TON/KAB. | E25: 2008 TON/KAB. | F25: 2009 TON/KAB. | G25: 2010 TON/KAB.
B26: TON/KAB. | C26: TON/KAB. | D26: TON/KAB. | E26: TON/KAB. | F26: TON/KAB.
A27: ARTVİN | B27: 6450 | C27: 7240 | D27: 7821 | E27: 8350 | F27: 11572 | G27: 9954
A28: RİZE | B28: 910 | C28: 1415 | D28: 1322 | E28: 1408 | F28: 2147 | G28: 2566
A29: TRABZON | B29: 47863 | C29: 55006 | D29: 42491 | E29: 74307 | F29: 36307 | G29: 45730
A30: GİRESUN | B30: 81305 | C30: 86723 | D30: 64131 | E30: 139764 | F30: 76273 | G30: 63776
A31: ORDU | B31: 172128 | C31: 188060 | D31: 140000 | E31: 210583 | F31: 91758 | G31: 201183
A32: SAMSUN | B32: 65034 | C32: 79312 | D32: 37714 | E32: 115706 | F32: 71656 | G32: 82693
A33: SİNOP | B33: 1295 | C33: 1322 | D33: 1758 | E33: 1615 | F33: 1847 | G33: 1567
A34: KASTAMONU | B34: 1972 | C34: 5895 | D34: 4519 | E34: 5396 | F34: 4288 | G34: 6465
A35: BARTIN | B35: 1586 | C35: 2166 | D35: 3082 | E35: 2852 | F35: 3455 | G35: 3530
A36: DÜZCE | B36: 53850 | C36: 78416 | D36: 71213 | E36: 90972 | F36: 72689 | G36: 80368
A37: ADAPAZARI | B37: 62682 | C37: 113988 | D37: 88245 | E37: 115262 | F37: 84012 | G37: 117231
A38: ZONGULDAK | B38: 18444 | C38: 23108 | D38: 21457 | E38: 24736 | F38: 21291 | G38: 25886
A39: KOCAELİ | B39: 11458 | C39: 12341 | D39: 14659 | E39: 13595 | F39: 13581 | G39: 13598
A40: G.TOPLAM | B40: =SUM(B27:B39) -> 524977 | C40: =SUM(C27:C39) -> 654992 | D40: 498412 | E40: 804546 | F40: 490876 | G40: 654547
A41: GERÇEKLEŞEN RESMİ TOPLAM | B41: 576911 | C41: 803376 | D41: 556301 | E41: 878023 | F41: 440413 | G41: 371936 | J41: TERME TİCARET BORSASI

Sheet Sayfa2

Sheet Sayfa3
